bitfinex-derivatives/quotes_SOLF0:USTF0_20250703
["timestamp","ask_amount","ask_price","bid_price","bid_amount"]
[1751570452573,6.5821,151.86,151.81,4.85240027]
[1751570452766,6.5821,151.86,151.83,6.583]
[1751570453368,6.5821,151.86,151.84,6.5829]
[1751570453777,6.5821,151.86,151.81,4.85240027]
[1751570454173,6.5821,151.86,151.83,6.583]
[1751570454371,6.5821,151.86,151.81,4.85240027]
[1751570455374,4.85240027,151.87,151.84,6.5826]
[1751570455773,6.5821,151.86,151.84,6.5826]
[1751570456573,6.5817,151.87,151.85,6.5825]
[1751570456775,4.456,151.88,151.85,6.5825]
[1751570457574,6.5817,151.87,151.85,6.5825]
[1751570458571,11.0372,151.88,151.86,6.582]
[1751570459678,11.0372,151.88,151.85,6.5823]
[1751570461271,2.1754,151.88,151.86,6.582]
[1751570461475,4.85240027,151.9,151.83,4.85240027]
[1751570461975,6.5815,151.88,151.85,6.5823]
[1751570462677,6.5817,151.87,151.85,6.5823]
[1751570465976,6.5817,151.87,151.84,6.5827]
[1751570466172,6.5823,151.86,151.84,6.5827]
[1751570470183,6.5823,151.86,151.83,6.5831]
[1751570470781,4.85240027,151.88,151.81,6.584]
[1751570470973,4.85240027,151.86,151.79,4.85240027]
[1751570471176,5.38593,151.85,151.79,4.85240027]
[1751570471377,6.93330171,151.86,151.8,6.5844]
[1751570471378,6.5836,151.83,151.8,6.5844]
[1751570471878,6.5836,151.83,151.79,4.85240027]
[1751570472076,6.5836,151.83,151.8,6.5846]
[1751570472585,6.5836,151.83,151.79,4.85240027]
[1751570473578,6.5836,151.83,151.81,6.584]
[1751570482697,6.5838,151.82,151.8,6.5845]
[1751570485397,6.5837,151.83,151.8,6.5845]
[1751570485590,5.38812685,151.82,151.8,6.5845]
[1751570485785,6.5837,151.83,151.81,6.5841]
[1751570485992,5.38812685,151.82,151.81,6.5841]
[1751570487194,6.5831,151.84,151.78,49.73240027]
[1751570487396,53.07404433,151.88,151.82,11.43580027]
[1751570487397,5.3873847,151.83,151.82,11.43580027]
[1751570487693,2.08366373,151.87,151.82,4.85240027]
[1751570487996,14.05278139,151.86,151.83,6.5831]
[1751570488198,5.38671766,151.85,151.83,6.5831]
[1751570488387,6.5824,151.86,151.83,6.5831]
[1751570488587,5.38662782,151.85,151.83,6.5831]
[1751570488791,6.5824,151.86,151.84,6.5828]
[1751570489001,5.38662782,151.85,151.84,6.5828]
[1751570490315,5.38662782,151.85,151.83,6.5831]
[1751570490505,6.5824,151.86,151.83,6.5831]
[1751570490796,5.38646368,151.85,151.83,6.5831]
[1751570490996,6.5824,151.86,151.83,6.5831]
[1751570491190,5.38646368,151.85,151.83,6.5831]
[1751570491391,6.5826,151.85,151.83,6.5831]
[1751570493493,6.5826,151.85,151.82,6.5836]
[1751570493699,6.5826,151.85,151.81,4.85240027]
[1751570494299,5.40473696,151.84,151.82,6.5834]
[1751570494503,6.5826,151.85,151.81,4.85240027]
[1751570494702,5.40472535,151.84,151.81,4.85240027]
[1751570494999,6.5826,151.85,151.82,6.5837]
[1751570495197,5.40472502,151.84,151.82,6.5837]
[1751570495390,6.5826,151.85,151.82,6.5837]
[1751570496492,6.5826,151.85,151.83,6.5834]
[1751570497502,6.5829,151.84,151.82,6.5837]
[1751570498102,6.5827,151.85,151.82,6.5837]
[1751570498298,5.4093239,151.84,151.82,6.5837]
[1751570498499,6.5827,151.85,151.82,6.5837]
[1751570498700,5.4093239,151.84,151.82,6.5837]
[1751570498900,6.5827,151.85,151.82,6.5837]
[1751570499202,5.4093239,151.84,151.82,6.5837]
[1751570499504,6.5827,151.85,151.82,6.5837]
[1751570499705,5.40931272,151.84,151.82,6.5837]
[1751570499904,6.5827,151.85,151.82,9.69123342]
[1751570500106,5.40931272,151.84,151.82,9.69123342]
[1751570500403,6.5827,151.85,151.82,9.69123342]
[1751570500604,5.40930164,151.84,151.82,9.69123342]
[1751570500805,6.5827,151.85,151.82,9.69123342]
[1751570501007,5.40468389,151.84,151.82,9.69123342]
[1751570501204,6.5827,151.85,151.82,9.69123342]
[1751570501399,5.40467291,151.84,151.82,9.69123342]
[1751570501707,6.5827,151.85,151.82,9.69123342]
[1751570501908,5.40467291,151.84,151.82,9.69123342]
[1751570502100,6.5827,151.85,151.82,9.69123342]
[1751570502301,5.40483046,151.84,151.82,9.69123342]
[1751570502502,6.5827,151.85,151.82,9.69123342]
[1751570502697,5.40467643,151.84,151.82,9.69123342]
[1751570502898,6.5827,151.85,151.82,9.69123342]
[1751570503098,5.40467643,151.84,151.82,9.69123342]
[1751570503309,9.69023342,151.85,151.82,9.69123342]
[1751570503508,5.40470029,151.84,151.83,6.5834]
[1751570503904,5.40470029,151.84,151.82,9.69113342]
[1751570504211,6.5827,151.85,151.82,9.69113342]
[1751570504510,5.40509573,151.84,151.82,9.69113342]
[1751570504708,6.5827,151.85,151.82,9.69113342]
[1751570504899,5.40509573,151.84,151.82,9.69113342]
[1751570505102,6.5827,151.85,151.82,9.69113342]
[1751570505302,5.40524398,151.84,151.83,6.5833]
[1751570507711,5.40524398,151.84,151.82,6.5835]
[1751570507909,3.10753342,151.86,151.82,6.5835]
[1751570508104,5.40609215,151.85,151.82,9.69103342]
[1751570508304,5.40609215,151.84,151.82,9.69103342]
[1751570508500,6.5828,151.85,151.82,9.69103342]
[1751570508707,5.40654962,151.84,151.82,9.69103342]
[1751570508906,6.5828,151.85,151.82,9.69103342]
[1751570509214,5.40654962,151.84,151.82,9.69103342]
[1751570509413,6.5828,151.85,151.82,9.69103342]
[1751570509711,5.4070352,151.84,151.82,9.69103342]
[1751570510009,6.5828,151.85,151.82,9.69103342]
[1751570510210,5.40703659,151.84,151.82,9.69103342]
[1751570510413,6.5828,151.85,151.82,9.69103342]
[1751570510714,5.4073234,151.84,151.83,6.5834]
[1751570511911,5.4073234,151.84,151.83,9.69093342]
[1751570512412,6.5828,151.85,151.83,9.69093342]
[1751570513214,6.5828,151.85,151.83,6.5834]
[1751570513613,6.5822,151.86,151.83,3.10753342]
[1751570513813,5.40842361,151.85,151.83,3.10753342]
[1751570514013,3.10753342,151.86,151.83,3.10753342]
[1751570514216,5.40842422,151.85,151.83,3.10753342]
[1751570514513,6.5825,151.85,151.83,9.69063342]
[1751570520119,6.5825,151.85,151.83,6.5831]
[1751570520314,8.52085326,151.84,151.81,44.88]
[1751570520514,8.52085326,151.84,151.77,758.22]
[1751570520515,3.10753342,151.82,151.77,613.6]
[1751570520816,5.41331984,151.81,151.78,3.10753342]
[1751570521015,5.51473342,151.83,151.79,3.10753342]
[1751570521216,5.41453161,151.82,151.79,3.10753342]
[1751570521416,5.41453161,151.81,151.79,3.10753342]
[1751570521610,6.584,151.82,151.79,3.10753342]
[1751570521808,5.4094906,151.81,151.79,3.10753342]
[1751570522011,6.584,151.82,151.79,3.10753342]
[1751570522220,5.4094906,151.81,151.79,3.10753342]
[1751570522422,9.69113342,151.83,151.8,6.5844]
[1751570522619,5.40908817,151.82,151.8,6.5844]
[1751570522819,5.40908817,151.81,151.8,6.5844]
[1751570524315,5.40908817,151.81,151.8,9.69193342]
[1751570524621,2.4072,151.86,151.8,3.10753342]
[1751570524820,5.40735589,151.85,151.83,3.10753342]
[1751570525024,8.9896,151.86,151.83,9.69063342]
[1751570525319,5.40725924,151.85,151.83,9.69063342]
[1751570525511,8.9896,151.86,151.83,9.69063342]
[1751570525718,11.98989833,151.85,151.83,9.69063342]
[1751570525912,6.5825,151.85,151.83,9.69063342]
[1751570529618,8.9895,151.86,151.84,3.10753342]
[1751570529824,6.15336594,151.89,151.85,3.10753342]
[1751570529825,9.26089936,151.89,151.85,3.10753342]
[1751570530027,7.50066614,151.88,151.85,3.10753342]
[1751570530231,11.98960501,151.87,151.86,3.10753342]
[1751570530726,11.98960501,151.87,151.85,9.68983342]
[1751570530928,5.40780501,151.86,151.85,9.68983342]
[1751570532732,5.40780501,151.86,151.85,3.10753342]
[1751570533929,5.40780501,151.86,151.85,9.69003342]
[1751570534130,6.5818,151.87,151.85,6.5825]
[1751570538235,6.5814,151.88,151.85,6.5825]
[1751570538434,5.41015375,151.87,151.85,6.5825]
[1751570538627,6.5814,151.88,151.85,6.5825]
[1751570538822,5.41015314,151.87,151.85,6.5825]
[1751570539027,6.5814,151.88,151.85,6.5825]
[1751570539234,5.41015314,151.87,151.85,6.5825]
[1751570539434,6.5814,151.88,151.85,6.5825]
[1751570539631,5.40985267,151.87,151.85,6.5825]
[1751570539837,6.5814,151.88,151.85,9.69003342]
[1751570540032,5.40985267,151.87,151.85,9.69003342]
[1751570540329,6.5814,151.88,151.85,9.69003342]
[1751570540527,5.41419752,151.87,151.85,9.69003342]
[1751570540729,6.5814,151.88,151.85,9.69003342]
[1751570540935,5.41419752,151.87,151.85,9.69003342]
[1751570541135,6.5814,151.88,151.85,9.69003342]
[1751570541434,5.41401636,151.87,151.85,9.69003342]
[1751570541636,6.5814,151.88,151.85,9.69003342]
[1751570541833,5.41392539,151.87,151.85,9.69003342]
[1751570542033,9.68893342,151.88,151.85,9.69003342]
[1751570542235,5.41392539,151.87,151.86,6.582]
[1751570542434,5.41392539,151.87,151.85,3.10753342]
[1751570542637,9.68893342,151.88,151.85,3.10753342]
[1751570542836,5.45042039,151.87,151.85,9.68983342]
[1751570543134,9.68893342,151.88,151.85,9.68983342]
[1751570543334,5.45021423,151.87,151.85,9.68983342]
[1751570543536,9.68893342,151.88,151.85,9.68983342]
[1751570543735,5.45021423,151.87,151.85,9.68983342]
[1751570543933,9.68893342,151.88,151.85,9.68983342]
[1751570544131,5.45021423,151.87,151.85,9.68983342]
[1751570544327,6.5816,151.87,151.85,9.68983342]
[1751570545239,9.68893342,151.88,151.85,9.68983342]
[1751570545537,5.44987026,151.87,151.85,3.10753342]
[1751570545742,6.5814,151.88,151.85,3.10753342]
[1751570545942,5.44987088,151.87,151.85,3.10753342]
[1751570546239,6.5814,151.88,151.85,3.10753342]
[1751570546439,12.03133221,151.87,151.85,3.10753342]
[1751570546641,6.5816,151.87,151.85,3.10753342]
[1751570546943,6.5816,151.87,151.84,6.5827]
[1751570547141,6.5816,151.87,151.85,3.10753342]
[1751570547335,6.5816,151.87,151.84,6.5827]
[1751570547535,6.5816,151.87,151.85,3.10753342]
[1751570547741,6.5816,151.87,151.84,6.5827]
[1751570547941,12.03223042,151.86,151.84,3.10753342]
[1751570548241,6.5825,151.86,151.84,3.10753342]
[1751570551044,3.10753342,151.85,151.82,44.88]
[1751570551245,8.55807088,151.84,151.82,44.88]
[1751570551437,3.10753342,151.84,151.82,44.88]
[1751570551638,6.5835,151.83,151.82,44.88]
[1751570553445,9.69083342,151.84,151.82,44.88]
[1751570554254,6.5833,151.84,151.82,44.88]
[1751570555244,9.69033342,151.85,151.82,44.88]
[1751570555449,5.44548059,151.84,151.82,47.98753342]
[1751570555655,6.5828,151.85,151.82,47.98753342]
[1751570557353,5.43153061,151.84,151.83,3.10753342]
[1751570557654,5.43153061,151.84,151.83,9.69103342]
[1751570557854,5.43153061,151.84,151.83,6.5835]
[1751570558153,6.5828,151.85,151.83,6.5835]
[1751570560754,6.5828,151.85,151.83,9.69103342]
[1751570563155,6.5828,151.85,151.83,3.10753342]
[1751570563959,6.5828,151.85,151.82,54.57123342]
[1751570566161,5.43578893,151.84,151.82,54.57123342]
[1751570566358,6.5828,151.85,151.82,54.57123342]
[1751570566556,12.01993074,151.84,151.82,54.57123342]
[1751570566756,6.5832,151.84,151.82,54.57123342]
[1751570569366,5.44470578,151.83,151.82,54.57123342]
[1751570571359,6.5832,151.84,151.82,54.57123342]
[1751570574366,6.5829,151.85,151.82,54.57123342]
[1751570574664,5.43681539,151.84,151.82,54.57123342]
[1751570574865,6.5829,151.85,151.82,54.57123342]
[1751570575066,5.43681539,151.84,151.82,54.57123342]
[1751570575368,6.5829,151.85,151.83,6.5834]
[1751570575568,5.43682988,151.84,151.83,6.5834]
[1751570576469,5.43682988,151.84,151.82,9.69123342]
[1751570576671,6.5829,151.85,151.82,9.69123342]
[1751570576864,5.43229826,151.84,151.82,9.69123342]
[1751570577063,6.5829,151.85,151.82,9.69123342]
[1751570577267,5.43229826,151.84,151.82,9.69123342]
[1751570577468,6.5829,151.85,151.82,9.69123342]
[1751570577665,5.43249153,151.84,151.82,9.69123342]
[1751570577868,6.5829,151.85,151.82,9.69123342]
[1751570578067,5.43249153,151.84,151.82,9.69123342]
[1751570578268,6.5829,151.85,151.82,9.69123342]
[1751570578467,5.43271211,151.84,151.82,9.69123342]
[1751570578768,6.5829,151.85,151.82,9.69123342]
[1751570579168,5.43271211,151.84,151.82,9.69123342]
[1751570579368,6.5829,151.85,151.82,9.69123342]
[1751570579570,5.43296199,151.84,151.82,9.69123342]
[1751570579773,6.5829,151.85,151.82,9.69123342]
[1751570580070,5.43296199,151.84,151.82,9.69123342]
[1751570580267,6.5829,151.85,151.82,3.10753342]
[1751570580473,5.43311916,151.84,151.82,3.10753342]
[1751570580669,6.5829,151.85,151.82,3.10753342]
[1751570580870,5.43311916,151.84,151.82,3.10753342]
[1751570581070,6.5829,151.85,151.82,3.10753342]
[1751570581380,5.43324279,151.84,151.82,3.10753342]
[1751570581570,6.15543458,151.88,151.83,3.10753342]
[1751570581771,6.15543458,151.88,151.8,234.3]
[1751570581772,135.86127654,151.9,151.87,3.10521971]
[1751570581967,5.43670003,151.89,151.88,3.10521971]
[1751570582566,5.43670003,151.89,151.87,3.10521971]
[1751570582771,5.43670003,151.88,151.87,3.10521971]
[1751570583074,5.43670003,151.88,151.86,3.10521971]
[1751570583276,6.5811,151.89,151.86,3.10521971]
[1751570583576,5.43515365,151.88,151.87,6.5818]
[1751570583776,5.43515365,151.88,151.87,9.68701971]
[1751570585274,5.43515365,151.88,151.87,3.10521971]
[1751570586478,5.43515365,151.88,151.85,44.86]
[1751570586681,6.5811,151.89,151.87,3.10521971]
[1751570586976,5.43315455,151.88,151.86,3.10521971]
[1751570587176,6.5811,151.89,151.86,3.10521971]
[1751570587378,5.43255903,151.88,151.87,6.5817]
[1751570590184,6.5811,151.89,151.87,6.5817]
[1751570594484,15.13931513,151.88,151.85,243.88771971]
[1751570594684,6.15543458,151.91,151.87,3.10521971]
[1751570594985,6.5809,151.89,151.87,3.10521971]
[1751570595185,5.45214837,151.88,151.87,3.10521971]
[1751570595386,5.45214837,151.88,151.86,9.68721971]
[1751570595587,6.581,151.89,151.86,9.68721971]
[1751570595786,5.45201379,151.88,151.86,9.68721971]
[1751570596086,6.581,151.89,151.86,9.68721971]
[1751570596287,5.45202869,151.88,151.86,9.68721971]
[1751570596478,6.581,151.89,151.86,9.68721971]
[1751570596681,5.45195879,151.88,151.86,9.68721971]
[1751570596884,6.581,151.89,151.86,9.68721971]
[1751570597185,5.45195879,151.88,151.86,9.68721971]
[1751570597384,6.581,151.89,151.86,9.68721971]
[1751570597590,5.45194221,151.88,151.86,9.68721971]
[1751570597890,6.581,151.89,151.86,9.68721971]
[1751570598087,5.45194221,151.88,151.86,9.68721971]
[1751570598288,6.581,151.89,151.86,9.68721971]
[1751570598489,5.44735231,151.88,151.86,6.582]
[1751570598692,6.581,151.89,151.86,9.68721971]
[1751570598987,5.44727493,151.88,151.86,9.68721971]
[1751570599189,6.581,151.89,151.86,9.68721971]
[1751570599389,5.44721706,151.88,151.86,9.68721971]
[1751570599593,6.581,151.89,151.87,6.5818]
[1751570599887,5.44720272,151.88,151.87,6.5818]
[1751570600690,5.44720272,151.88,151.86,9.68721971]
[1751570600888,6.581,151.89,151.86,9.68721971]
[1751570601089,5.44718182,151.88,151.86,9.68721971]
[1751570601390,6.581,151.89,151.86,9.68721971]
[1751570601591,5.45169089,151.88,151.86,9.68721971]
[1751570601890,6.581,151.89,151.86,9.68721971]
[1751570602090,5.45169089,151.88,151.86,9.68721971]
[1751570602286,8.44503458,151.92,151.86,3.10521971]
[1751570602492,3.10521971,151.89,151.86,3.10521971]
[1751570602692,5.45144883,151.88,151.85,237.30521971]
[1751570602892,3.10521971,151.89,151.85,237.30521971]
[1751570603092,5.45154675,151.88,151.85,237.30521971]
[1751570603394,3.10521971,151.89,151.85,237.30521971]
[1751570603592,12.03303697,151.88,151.86,6.582]
[1751570603792,6.5814,151.88,151.86,6.582]
[1751570604092,6.5818,151.87,151.86,6.582]
[1751570604482,3.10521971,151.89,151.86,6.582]
[1751570604682,12.0333535,151.88,151.86,6.582]
[1751570604886,6.5816,151.88,151.86,6.582]
[1751570605184,3.10521971,151.89,151.87,6.5818]
[1751570605485,5.45192623,151.88,151.87,6.5818]
[1751570605682,5.45192623,151.88,151.86,6.582]
[1751570605892,6.5813,151.88,151.86,6.582]
[1751570606082,3.10521971,151.9,151.87,6.5815]
[1751570606283,5.45206944,151.89,151.87,6.5815]
[1751570606482,5.45206944,151.88,151.87,6.5815]
[1751570607493,5.45206944,151.88,151.86,9.68721971]
[1751570607694,6.5812,151.89,151.86,9.68721971]
[1751570607894,5.44753724,151.88,151.86,9.68721971]
[1751570608088,6.5812,151.89,151.86,9.68721971]
[1751570608289,5.44767755,151.88,151.86,9.68721971]
[1751570608484,6.5812,151.89,151.86,9.68721971]
[1751570608691,5.44770108,151.88,151.86,9.68721971]
[1751570608890,6.5812,151.89,151.86,9.68721971]
[1751570609090,5.44770108,151.88,151.86,9.68721971]
[1751570609290,6.5812,151.89,151.86,9.68721971]
[1751570609590,5.44789763,151.88,151.86,9.68721971]
[1751570609784,6.5812,151.89,151.86,9.68721971]
[1751570609995,5.44789763,151.88,151.86,6.582]
[1751570610296,6.5812,151.89,151.86,9.68721971]
[1751570610493,5.44815151,151.88,151.86,9.68721971]
[1751570610695,6.5812,151.89,151.86,9.68721971]
[1751570610894,5.44815151,151.88,151.86,9.68721971]
[1751570611094,6.5812,151.89,151.86,9.68721971]
[1751570611292,5.44831918,151.88,151.86,9.68721971]
[1751570611495,6.5814,151.88,151.86,6.582]
[1751570611693,6.5814,151.88,151.86,9.68721971]
[1751570613999,6.15543458,151.91,151.87,3.10521971]
[1751570614297,5.45425512,151.9,151.88,3.10521971]
[1751570614494,5.45425512,151.89,151.88,9.68631971]
[1751570615200,5.45425512,151.89,151.88,3.10521971]
[1751570615699,5.45425512,151.89,151.88,9.68651971]
[1751570616100,5.45425512,151.89,151.88,6.5813]
[1751570616301,5.45425512,151.89,151.88,9.68651971]
[1751570617101,6.5802,151.91,151.88,9.68651971]
[1751570617300,5.4549957,151.9,151.88,9.68651971]
[1751570617501,6.5802,151.91,151.88,9.68651971]
[1751570617704,5.45570185,151.9,151.88,198.98651971]
[1751570617897,6.5802,151.91,151.88,198.98651971]
[1751570618097,5.45570187,151.9,151.88,198.98651971]
[1751570618300,6.5805,151.9,151.88,198.98651971]
[1751570620404,6.5803,151.91,151.89,6.5809]
[1751570620704,5.45774082,151.9,151.89,6.5809]
[1751570623504,5.46489133,151.9,151.89,6.5809]
[1751570630506,12.04539133,151.9,151.88,198.98631971]
[1751570630704,5.46489133,151.89,151.88,198.98631971]
[1751570631199,5.46489133,151.89,151.88,195.8811]
[1751570631405,12.04579133,151.89,151.88,189.3]
[1751570631604,15.15101104,151.89,151.88,189.3]
[1751570631906,6.5814,151.88,151.86,6.582]
[1751570632100,5.46489133,151.87,151.86,6.582]
[1751570632299,9.68661971,151.88,151.86,6.582]
[1751570633707,9.68661971,151.88,151.86,6.5822]
[1751570633903,6.5814,151.88,151.86,6.5822]
[1751570635002,12.01350531,151.87,151.85,47.94521971]
[1751570635209,6.5818,151.87,151.85,47.94521971]
[1751570635409,5.43207433,151.86,151.85,54.52781971]
[1751570639209,6.5815,151.88,151.85,54.52781971]
[1751570639410,5.4172719,151.87,151.85,54.52781971]
[1751570639608,6.5815,151.88,151.85,54.52781971]
[1751570639813,5.4172719,151.87,151.86,6.5822]
[1751570640206,5.4172719,151.87,151.85,47.94521971]
[1751570640413,3.10521971,151.88,151.85,44.84]
[1751570640711,5.41725234,151.87,151.85,44.84]
[1751570640914,5.41732932,151.86,151.85,51.4224]
[1751570641411,5.41732932,151.86,151.85,44.84]
[1751570642211,6.582,151.87,151.85,47.94521971]
[1751570643712,6.582,151.87,151.85,54.52781971]
[1751570648917,6.15534658,151.9,151.86,9.68711971]
[1751570649123,5.41599647,151.89,151.87,3.10521971]
[1751570649323,5.41599647,151.88,151.87,3.10521971]
[1751570649524,11.99739647,151.88,151.86,9.68711971]
[1751570649725,6.5814,151.88,151.86,9.68711971]
[1751570652124,6.5814,151.88,151.87,3.10521971]
[1751570652320,11.99725379,151.88,151.86,9.68711971]
[1751570652518,6.5814,151.88,151.86,9.68711971]
[1751570654426,6.5811,151.89,151.86,9.68711971]
[1751570654628,5.4160526,151.88,151.86,9.68711971]
[1751570654928,6.5811,151.89,151.86,9.68711971]
[1751570655128,5.4160526,151.88,151.86,9.68711971]
[1751570655324,6.5811,151.89,151.86,9.68711971]
[1751570655628,5.41609239,151.88,151.86,9.68711971]
[1751570655830,6.5811,151.89,151.86,9.68711971]
[1751570656029,5.41609239,151.88,151.86,9.68711971]
[1751570656230,6.5811,151.89,151.86,9.68711971]
[1751570656425,5.41605589,151.88,151.86,9.68711971]
[1751570656726,6.5811,151.89,151.86,9.68711971]
[1751570656926,5.41605589,151.88,151.86,9.68711971]
[1751570657120,6.5811,151.89,151.86,9.68711971]
[1751570657425,5.42521099,151.88,151.86,9.68711971]
[1751570657626,6.5811,151.89,151.86,9.68711971]
[1751570657835,5.42535337,151.88,151.86,9.68711971]
[1751570658131,6.5811,151.89,151.86,9.68711971]
[1751570658332,5.42527334,151.88,151.87,6.5818]
[1751570658526,5.42527334,151.88,151.87,9.68701971]
[1751570658733,3.10521971,151.91,151.87,3.10521971]
[1751570658931,5.42496624,151.9,151.88,9.68631971]
[1751570659131,5.42496624,151.89,151.88,9.68631971]
[1751570660132,5.42496624,151.89,151.88,3.10521971]
[1751570660634,5.42477633,151.89,151.88,3.10521971]
[1751570661325,5.42477633,151.89,151.87,9.68671971]
[1751570661529,6.5807,151.9,151.87,9.68671971]
[1751570661730,5.42470165,151.89,151.87,9.68671971]
[1751570661937,6.5807,151.9,151.87,9.68671971]
[1751570662133,8.53454004,151.89,151.85,47.94521971]
[1751570662336,8.53253157,151.88,151.85,44.84]
[1751570662634,5.42789573,151.87,151.85,44.84]
[1751570662830,6.582,151.87,151.85,51.4223]
[1751570664432,9.68681971,151.88,151.85,51.4223]
[1751570664634,5.4281998,151.87,151.85,51.4223]
[1751570664838,9.68681971,151.88,151.85,51.4223]
[1751570665040,5.4281998,151.87,151.85,51.4223]
[1751570665338,9.68681971,151.88,151.85,51.4223]
[1751570665538,5.42829343,151.87,151.85,51.4223]
[1751570665745,9.68681971,151.88,151.85,51.4223]
[1751570665936,5.42829343,151.87,151.85,51.4223]
[1751570666241,6.5818,151.87,151.85,6.5823]
[1751570666441,3.10521971,151.88,151.85,6.5823]
[1751570666741,5.40996208,151.87,151.85,6.5823]
[1751570666937,9.68671971,151.88,151.85,6.5823]
[1751570667140,5.40996208,151.87,151.85,6.5823]
[1751570667340,9.68671971,151.88,151.85,6.5823]
[1751570667541,5.41014125,151.87,151.85,6.5823]
[1751570667741,9.68671971,151.88,151.85,6.5823]
[1751570667943,5.41014125,151.87,151.86,6.5822]
[1751570670145,5.41014125,151.87,151.85,9.68761971]
[1751570670345,6.5815,151.88,151.85,9.68761971]
[1751570670545,5.41095019,151.87,151.85,9.68761971]
[1751570670738,6.5815,151.88,151.85,9.68761971]
[1751570670939,5.41095019,151.87,151.85,9.68761971]
[1751570671139,6.5815,151.88,151.85,9.68761971]
[1751570671334,11.9979264,151.87,151.85,6.5824]
[1751570671539,5.4161264,151.86,151.85,6.5824]
[1751570677244,5.4161264,151.86,151.85,9.68761971]
[1751570677446,5.41844006,151.86,151.85,9.68761971]
[1751570679452,3.10521971,151.88,151.85,9.68761971]
[1751570679653,5.4185061,151.87,151.85,9.68761971]
[1751570679851,5.4185061,151.86,151.85,9.68761971]
[1751570688961,5.4185061,151.86,151.85,198.82761971]
[1751570692460,5.4185061,151.86,151.85,195.7224]
[1751570694262,5.4185061,151.86,151.85,198.82761971]
[1751570698661,5.4185061,151.86,151.85,195.7224]
[1751570700063,3.10521971,151.88,151.85,195.7224]
[1751570700259,8.52265832,151.87,151.85,195.7224]
[1751570700464,5.19670226,151.86,151.83,44.78]
[1751570700665,3.10521971,151.85,151.83,44.78]
[1751570701064,5.41787696,151.84,151.83,51.3635]
[1751570701657,3.10521971,151.85,151.83,51.3635]
[1751570701863,5.41758141,151.84,151.83,51.3635]
[1751570702365,3.10521971,151.85,151.83,51.3635]
[1751570703261,3.10521971,151.85,151.84,6.583]
[1751570703568,5.40800775,151.85,151.84,3.10521971]
[1751570704566,5.40800775,151.85,151.84,9.68821971]
[1751570705665,5.19385033,151.87,151.84,9.68821971]
[1751570705869,5.40855725,151.86,151.84,9.68821971]
[1751570706067,5.40855725,151.85,151.84,9.68821971]
[1751570706366,5.40855725,151.85,151.84,6.583]
[1751570707666,5.40855725,151.85,151.84,9.68821971]
[1751570708963,5.40855725,151.85,151.83,44.78]
[1751570709166,5.40855725,151.84,151.83,44.78]
[1751570709561,5.40855725,151.84,151.83,51.3634]
[1751570709963,8.51377696,151.84,151.78,2.2774]
[1751570710159,3.10521971,151.81,151.79,44.76]
[1751570710368,5.40855725,151.8,151.79,233.86]
[1751570710567,3.10521971,151.81,151.79,233.86]
[1751570710763,3.10521971,151.81,151.79,44.76]
[1751570710969,3.10521971,151.81,151.79,51.3449]
[1751570711170,3.10521971,151.81,151.79,6.5849]
[1751570711368,3.10521971,151.8,151.79,6.5849]
[1751570712269,8.50826926,151.8,151.79,6.5849]
[1751570712568,8.49637281,151.8,151.79,6.5849]
[1751570712769,8.49637281,151.8,151.78,6.5854]
[1751570712965,3.10521971,151.8,151.78,6.5854]
[1751570719775,3.10521971,151.8,151.79,6.5852]
[1751570720577,6.5381,151.84,151.79,3.10521971]
[1751570720775,6.5381,151.84,151.77,189.12]
[1751570720776,8.46589861,151.83,151.8,3.10521971]
[1751570720977,3.10521971,151.83,151.8,192.24521971]
[1751570721575,3.10521971,151.83,151.81,6.5843]
[1751570721778,14.04361971,151.84,151.81,6.5843]
[1751570721974,14.04361971,151.84,151.81,9.68951971]
[1751570722173,14.04361971,151.84,151.81,6.5843]
[1751570722373,14.04361971,151.84,151.81,9.68951971]
[1751570722575,4.3552,151.84,151.82,6.5838]
[1751570722777,7.46041971,151.84,151.81,3.10521971]
[1751570722974,7.46041971,151.84,151.8,192.24521971]
[1751570723275,14.04381971,151.84,151.8,192.24521971]
[1751570723477,14.04381971,151.84,151.8,198.82971971]
[1751570723670,3.10521971,151.83,151.8,198.82971971]
[1751570723879,3.10521971,151.83,151.8,192.24521971]
[1751570724078,11.86521971,151.84,151.81,9.68921971]
[1751570726683,11.86521971,151.84,151.82,6.5839]
[1751570727476,123.6541388,151.87,151.83,3.10521971]
[1751570727683,5.36784052,151.86,151.84,3.10521971]
[1751570727885,120.54891909,151.87,151.84,3.10521971]